bitfinex/quotes_ETHUSD_20260207
["timestamp","ask_amount","ask_price","bid_price","bid_amount"]
[1770427076601,1.22303214,2044.1,2043.0,1.22369065]
[1770427076805,0.6116935,2044.0,2043.0,2.82181156]
[1770427077711,5.61652158,2044.0,2042.7,1.83998719]
[1770427078304,1.22315181,2043.9,2042.7,1.83998719]
[1770427078886,1.22315181,2043.9,2042.7,0.61612563]
[1770427079085,6.22797989,2043.9,2042.7,0.61612563]
[1770427079291,1.17322807,2043.8,2042.7,1.8399861]
[1770427080011,5.23839838,2043.6,2042.3,1.22410091]
[1770427080199,1.22345111,2043.4,2042.2,1.22417001]
[1770427080714,1.72345111,2043.4,2042.2,6.15065221]
[1770427080879,1.72345111,2043.4,2042.4,4.9264822]
[1770427081085,1.72345111,2043.4,2042.5,0.49679932]
[1770427081086,1.22345111,2043.4,2042.5,0.49679932]
[1770427081412,1.22345111,2043.4,2042.8,0.001]
[1770427081994,1.55058851,2043.5,2042.8,0.001]
[1770427082286,1.22339483,2043.5,2042.8,0.001]
[1770427082492,1.22337663,2043.6,2042.8,0.001]
[1770427082694,1.22330835,2043.7,2042.8,6.0363167]
[1770427082886,1.22330835,2043.7,2042.8,0.001]
[1770427085100,1.55177387,2043.8,2042.8,0.001]
[1770427085308,0.3285159,2043.8,2043.0,4.9264822]
[1770427085922,6.52758532,2043.8,2042.9,0.041511]
[1770427086216,0.1024,2043.6,2042.5,0.001]
[1770427086402,1.22339124,2043.5,2042.5,0.001]
[1770427086589,6.19924206,2043.5,2042.5,0.001]
[1770427087428,6.19924206,2043.5,2042.1,1.22422859]
[1770427087429,4.97585082,2043.3,2042.1,1.22422859]
[1770427087624,4.97585082,2043.3,2042.0,1.22424394]
[1770427087834,0.50782508,2043.2,2042.0,1.83649456]
[1770427088385,0.50782508,2043.2,2042.1,5.41281463]
[1770427088613,0.7335703,2043.6,2042.0,1.87800556]
[1770427088614,1.22339124,2043.5,2042.3,5.45432563]
[1770427090507,4.89356496,2043.6,2042.4,1.22405013]
[1770427091092,4.89356496,2043.6,2042.6,0.041511]
[1770427091293,4.89356496,2043.6,2042.6,5.45432563]
[1770427091499,4.89356496,2043.6,2042.7,0.54543256]
[1770427092650,1.22333137,2043.6,2042.8,1.22381045]
[1770427094234,1.22333137,2043.6,2042.7,1.76925961]
[1770427094534,0.002,2043.4,2042.7,1.76925961]
[1770427095833,0.002,2043.4,2042.7,1.81077061]
[1770427096142,0.002,2043.4,2042.8,1.21192443]
[1770427097435,0.002,2043.4,2042.8,2.43567902]
[1770427099635,0.002,2043.4,2042.7,1.76929792]
[1770427099814,0.002,2043.4,2042.7,0.54543256]
[1770427100333,0.002,2043.4,2042.7,1.76930142]
[1770427101440,5.043921,2043.4,2042.3,0.041511]
[1770427101616,5.043921,2043.4,2042.2,0.001]
[1770427101617,1.22351098,2043.3,2042.2,0.001]
[1770427101936,1.22351098,2043.3,2042.2,5.41381463]
[1770427102110,2.32487087,2043.3,2042.3,1.03107323]
[1770427102528,2.32487087,2043.3,2042.3,1.07258423]
[1770427102735,1.22351098,2043.3,2042.3,6.48539886]
[1770427103547,0.002,2043.4,2042.4,1.22405013]
[1770427104641,0.002,2043.4,2042.6,5.45432563]
[1770427104948,0.002,2043.4,2042.7,0.54543256]
[1770427105616,0.002,2043.4,2042.8,1.22381045]
[1770427105818,0.002,2043.4,2042.7,0.54543256]
[1770427106030,0.002,2043.4,2042.7,1.76928645]
[1770427108230,0.002,2043.1,2042.7,1.76928645]
[1770427108551,0.002,2043.1,2042.8,1.21192722]
[1770427110554,0.002,2043.1,2042.7,1.76928645]
[1770427110757,0.002,2043.1,2042.8,1.22380508]
[1770427111144,0.002,2043.1,2042.7,1.76925496]
[1770427111338,0.002,2043.1,2042.8,1.22380613]
[1770427111538,0.002,2043.1,2042.7,1.76924948]
[1770427112446,0.002,2043.1,2042.8,1.22380326]
[1770427113664,0.002,2043.4,2042.9,5.41281463]
[1770427114276,0.002,2043.4,2042.8,1.89442479]
[1770427115857,5.24279829,2043.4,2042.8,0.67062153]
[1770427116037,5.24279829,2043.4,2042.5,0.001]
[1770427116634,6.46430927,2043.3,2042.5,0.001]
[1770427117332,5.24079829,2043.1,2042.5,0.001]
[1770427118958,1.22375055,2042.9,2042.5,0.001]
[1770427119162,1.05013899,2042.8,2042.5,0.001]
[1770427119352,1.22375055,2042.9,2042.5,0.001]
[1770427119353,1.05013899,2042.7,2042.5,0.001]
[1770427119662,4.89414573,2043.3,2042.5,0.001]
[1770427119858,2.18539676,2043.2,2042.5,0.001]
[1770427120057,1.04935126,2043.1,2042.5,0.001]
[1770427120263,1.04935126,2043.0,2042.5,0.001]
[1770427120558,1.04935126,2042.9,2042.5,0.001]
[1770427120753,4.89414573,2043.3,2042.5,0.001]
[1770427120953,1.22363075,2043.1,2042.5,0.001]
[1770427121130,1.04951235,2043.0,2042.5,0.001]
[1770427121751,0.002,2043.1,2042.5,0.001]
[1770427122359,0.002,2043.1,2042.6,0.041511]
[1770427122559,0.002,2043.1,2042.6,5.04547838]
[1770427122759,0.002,2043.3,2042.9,0.041511]
[1770427122973,0.002,2043.3,2042.8,1.22378754]
[1770427123172,0.002,2043.3,2042.9,1.22374167]
[1770427124184,1.05034908,2043.2,2042.8,1.22377762]
[1770427124373,1.05034908,2043.1,2042.7,1.22382473]
[1770427124554,0.002,2043.3,2042.7,1.8400195]
[1770427124754,1.05028924,2043.2,2042.7,1.8400195]
[1770427125057,1.05028924,2043.1,2042.8,1.22380221]
[1770427125257,0.002,2043.3,2042.8,1.22380221]
[1770427125457,1.05108517,2043.2,2042.8,1.22380221]
[1770427125686,1.05108517,2043.1,2042.8,1.22380221]
[1770427125988,0.002,2043.3,2042.8,1.8973489]
[1770427126177,0.002,2043.3,2042.8,6.94282728]
[1770427127887,0.002,2043.3,2042.8,1.8973489]
[1770427129951,0.002,2043.3,2042.8,1.9388599]
[1770427131668,0.002,2043.3,2042.8,6.94282728]
[1770427131981,0.002,2043.3,2043.0,1.22369065]
[1770427134892,0.002,2043.4,2043.2,0.001]
[1770427139809,0.002,2043.4,2043.2,6.22853824]
[1770427140473,5.22005481,2044.2,2043.6,5.00396738]
[1770427140474,0.32405691,2044.2,2043.6,5.00396738]
[1770427140686,0.32405691,2044.2,2043.7,0.50039674]
[1770427140878,0.002,2044.4,2043.7,5.50436412]
[1770427141797,0.002,2044.4,2043.8,1.22321166]
[1770427142300,5.24279829,2044.4,2043.3,1.22348121]
[1770427142502,5.76507812,2044.3,2043.3,1.22348121]
[1770427143300,1.04874014,2044.2,2043.3,1.22348121]
[1770427143500,1.04874014,2044.1,2043.3,1.22348121]
[1770427143704,5.76507812,2044.3,2043.3,1.22348121]
[1770427143904,1.04846518,2044.2,2043.3,1.22348121]
[1770427144196,5.76507812,2044.3,2043.2,4.89516043]
[1770427144197,1.22309197,2044.0,2043.2,0.001]
[1770427144970,5.24079829,2043.8,2043.2,0.001]
[1770427145382,1.04790521,2043.7,2043.2,0.001]
[1770427145571,5.24079829,2043.8,2043.2,0.001]
[1770427145774,1.04790328,2043.7,2043.2,0.001]
[1770427145999,1.22339124,2043.5,2043.1,4.6942127]
[1770427146203,5.19615505,2043.9,2043.1,4.6942127]
[1770427146503,5.94054768,2043.8,2043.1,5.91781424]
[1770427146700,1.04767064,2043.7,2043.1,1.22360154]
[1770427147004,6.41935061,2043.9,2043.1,1.22360154]
[1770427147177,1.04775387,2043.8,2043.1,1.22360154]
[1770427147382,2.91178751,2043.9,2043.1,1.22360154]
[1770427147697,1.04808391,2043.8,2043.2,0.001]
[1770427147906,1.05008391,2043.8,2043.2,0.001]
[1770427148281,2.27187504,2043.7,2043.2,0.001]
[1770427148489,1.22327151,2043.7,2043.2,0.001]
[1770427149704,1.04942141,2043.6,2043.0,0.001]
[1770427150005,1.04942141,2043.5,2043.0,0.001]
[1770427150182,6.9358395,2043.7,2043.0,0.001]
[1770427150382,1.04968246,2043.6,2043.0,0.001]
[1770427150583,1.84823466,2043.5,2043.0,0.001]
[1770427150782,0.7985522,2043.5,2043.0,0.001]
[1770427151203,1.05002998,2043.4,2043.0,0.001]
[1770427151510,0.7985522,2043.5,2043.0,0.001]
[1770427151684,1.04974295,2043.4,2043.0,0.001]
[1770427151886,0.7985522,2043.5,2043.0,0.001]
[1770427152108,1.04970335,2043.4,2043.0,0.001]
[1770427152312,1.22345111,2043.4,2043.0,0.001]
[1770427153018,0.002,2043.8,2043.0,4.93206399]
[1770427153215,0.002,2043.8,2043.1,0.4932064]
[1770427153709,0.002,2043.8,2043.1,5.46578139]
[1770427154307,0.002,2043.8,2043.3,4.93106399]
[1770427154482,0.002,2044.0,2043.4,4.97257499]
[1770427154910,0.002,2044.4,2043.4,4.97257499]
[1770427155082,0.002,2044.4,2043.6,4.93106399]
[1770427156313,0.002,2044.4,2043.7,6.1543355]
[1770427157613,0.002,2044.4,2043.7,1.22327151]
[1770427158491,0.002,2044.4,2043.6,4.89308606]
[1770427159412,4.93189462,2044.2,2043.2,1.22352597]
[1770427159604,6.57872785,2044.1,2043.3,1.22350617]
[1770427159806,5.52996079,2044.1,2043.3,1.22450617]
[1770427160110,1.04867745,2044.0,2043.5,1.22338323]
[1770427160314,0.002,2044.2,2043.5,1.22338323]
[1770427166402,0.002,2044.2,2043.5,6.15444722]
[1770427166603,0.002,2044.2,2043.3,1.22448603]
[1770427166801,5.98085112,2044.1,2043.3,0.001]
[1770427167003,1.22321166,2043.8,2043.3,0.001]
[1770427167326,1.0489565,2043.7,2043.3,0.001]
[1770427167631,6.15510628,2043.8,2043.3,0.001]
[1770427167811,1.04871015,2043.7,2043.3,0.001]
[1770427168010,6.15510628,2043.8,2043.3,0.001]
[1770427168233,1.04875629,2043.7,2043.3,0.001]
[1770427168529,7.80901475,2043.8,2043.3,0.001]
[1770427168714,5.98058862,2043.7,2043.3,0.001]
[1770427168918,4.93189462,2043.7,2043.3,0.001]
[1770427169900,1.22333137,2043.6,2043.0,0.001]
[1770427170119,2.55230929,2043.6,2043.0,0.001]
[1770427170326,4.89262873,2043.9,2043.0,0.001]
[1770427170327,4.8927076,2043.9,2043.0,0.001]
[1770427170618,1.04835395,2043.8,2043.0,0.001]
[1770427170818,1.04835395,2043.7,2043.0,0.001]
[1770427171130,4.8927076,2043.9,2043.0,4.93206399]
[1770427171131,1.22315181,2043.9,2043.0,4.93206399]
[1770427171436,4.89223626,2044.1,2043.1,0.4973575]
[1770427171596,1.04762089,2044.0,2043.1,0.4973575]
[1770427171799,1.04762089,2043.9,2043.1,0.4973575]
[1770427172000,4.89223626,2044.1,2043.1,0.4973575]
[1770427172202,1.22315181,2043.9,2043.2,1.22457086]
[1770427172409,4.89217962,2044.1,2043.2,7.31046243]
[1770427172609,1.04972017,2044.0,2043.3,4.93106399]
[1770427172817,0.002,2044.0,2043.3,4.93106399]
[1770427174339,0.002,2044.0,2043.4,6.1545151]
[1770427174637,0.002,2044.0,2043.5,1.10483195]
[1770427176751,0.002,2044.0,2043.5,2.32821559]
[1770427177402,0.002,2044.0,2043.5,7.55360174]
[1770427177801,0.002,2044.0,2043.5,2.32821559]
[1770427178910,0.002,2044.0,2043.5,7.55360174]
[1770427179232,0.002,2044.0,2043.6,6.47012584]
[1770427179406,0.002,2044.0,2043.3,1.22347443]
[1770427179807,1.04855031,2043.9,2043.3,1.22347443]
[1770427180027,0.002,2044.0,2043.3,1.22347443]
[1770427180301,1.04860917,2043.9,2043.3,1.22347443]
[1770427180530,0.002,2044.0,2043.2,2.37936992]
[1770427180729,1.04883177,2043.9,2043.2,2.37936992]
[1770427180929,0.002,2044.0,2043.2,1.15582758]
[1770427181234,6.12006919,2043.9,2043.2,0.001]
[1770427181419,6.12006919,2043.8,2043.2,0.001]
[1770427181751,1.04874633,2043.7,2043.2,0.001]
[1770427182948,1.04874633,2043.6,2043.2,0.001]
[1770427183248,1.22334854,2043.6,2043.2,0.001]
[1770427183453,1.22324498,2043.8,2043.2,0.001]
[1770427183617,4.89271801,2043.9,2043.2,0.52373862]
[1770427183618,1.04950261,2043.7,2043.2,0.52373862]
[1770427183815,1.22319509,2043.9,2043.2,0.52373862]
[1770427184034,1.04952506,2043.8,2043.2,0.52373862]
[1770427184234,1.22319509,2043.9,2043.2,0.001]
[1770427184547,1.04936765,2043.8,2043.2,0.001]
[1770427184849,1.04936765,2043.7,2043.4,0.001]
[1770427185032,1.22327151,2043.7,2043.4,0.001]
[1770427185828,9.96640892,2043.8,2043.4,0.001]
[1770427185829,6.29657853,2043.8,2043.4,0.001]
[1770427186025,1.04940421,2043.7,2043.4,0.001]
[1770427186222,2.34438255,2043.8,2043.4,0.001]
[1770427186424,1.04954364,2043.7,2043.4,0.001]
[1770427186626,2.34438255,2043.8,2043.4,0.001]
[1770427186846,1.04954319,2043.7,2043.4,0.001]
[1770427187036,2.34438255,2043.8,2043.4,0.001]
[1770427187367,5.07132286,2043.6,2043.2,0.001]
[1770427187569,5.07132286,2043.6,2042.6,4.89572015]
[1770427187570,5.07132286,2043.4,2042.5,0.001]
[1770427187751,5.07132286,2043.2,2042.5,0.001]
[1770427188055,6.12086272,2043.1,2042.5,0.001]
[1770427188255,6.99522809,2043.0,2042.3,0.001]
[1770427188424,6.12086272,2042.9,2042.3,0.001]
[1770427188625,1.04953986,2042.8,2042.3,0.001]
[1770427188944,1.04953986,2042.7,2042.3,0.001]
[1770427189250,2.27347014,2042.6,2042.2,0.001]
[1770427189448,2.69989684,2042.6,2042.2,0.001]
[1770427189956,6.11761155,2042.5,2041.8,0.001]
[1770427190157,5.07132286,2042.3,2041.8,0.001]
[1770427190849,6.11543192,2042.2,2041.8,0.001]
[1770427191074,1.22393028,2042.6,2041.8,0.001]
[1770427191561,6.29525314,2042.6,2041.8,0.001]
[1770427191767,5.07132286,2042.4,2041.8,0.001]
[1770427192737,1.22393028,2042.6,2041.8,0.001]
[1770427193759,1.22351098,2043.3,2042.0,5.22538615]
[1770427194069,1.04231693,2043.2,2042.3,5.22538615]
[1770427194283,1.04231693,2043.2,2042.2,0.041511]
[1770427194284,6.29657763,2043.8,2042.6,5.22538615]
[1770427194578,1.22521463,2043.8,2042.6,5.22538615]
[1770427194866,5.07132286,2043.6,2042.3,5.22538615]
[1770427195075,1.22339124,2043.5,2042.4,1.22405013]
[1770427195354,2.83154839,2043.5,2042.5,1.13456368]
[1770427196848,2.78154839,2043.5,2042.5,1.13456368]
[1770427197268,2.78154839,2043.5,2042.6,1.22393028]
[1770427197448,2.78154839,2043.5,2042.5,2.35855025]
[1770427197762,0.002,2042.6,2042.5,2.35855076]
[1770427197968,2.78154839,2043.5,2042.5,2.35855076]
[1770427198141,1.27464362,2043.4,2042.6,0.72547254]
[1770427198336,5.07132286,2043.3,2042.2,1.2241654]
[1770427198563,5.07132286,2043.3,2042.1,1.74673726]
[1770427198739,5.07132286,2043.3,2042.3,4.89642592]
[1770427198937,5.07132286,2043.3,2042.4,1.22401181]
[1770427199349,1.22351098,2043.3,2042.2,6.44955616]
[1770427199668,1.92188171,2043.3,2042.3,1.1869014]
[1770427202245,1.92188171,2043.3,2042.4,1.22405013]
[1770427202449,1.22351098,2043.3,2042.4,6.44943628]
[1770427204356,9.96690039,2043.5,2042.4,1.22405013]
[1770427204564,6.11672712,2043.4,2042.5,3.85]
[1770427204740,5.07132286,2043.4,2042.5,3.85]
[1770427204946,0.99669004,2043.3,2042.5,3.85]
[1770427206171,0.99669004,2043.3,2042.5,8.87867301]
[1770427206370,4.89557753,2043.5,2042.5,8.87867301]
[1770427206669,4.89557753,2043.5,2042.6,1.22393028]
[1770427206670,1.22351098,2043.3,2042.6,1.22393028]
[1770427206969,1.22351098,2043.3,2042.5,10.10261912]
[1770427208663,0.002,2043.5,2042.5,10.10261912]
[1770427208863,1.04729251,2043.4,2042.5,10.10261912]
[1770427209050,1.04729251,2043.3,2042.6,1.49987234]
[1770427209249,0.002,2043.5,2042.6,1.49987234]
[1770427209452,1.0480565,2043.4,2042.7,3.85]
[1770427209659,1.0480565,2043.3,2042.7,3.85]
[1770427209865,0.002,2043.1,2042.7,3.85]
[1770427210065,0.002,2043.1,2042.8,4.75897003]
[1770427210256,0.002,2043.3,2042.9,8.60897003]
[1770427210467,0.002,2043.5,2042.9,8.85]
[1770427210652,5.12737346,2043.5,2042.9,5.0]
[1770427210845,1.22351098,2043.3,2042.9,5.0]
[1770427211873,0.002,2043.5,2043.0,4.75897003]
[1770427212078,1.22524886,2043.8,2043.0,8.60897003]
[1770427212287,1.04777949,2043.7,2043.0,8.60897003]
[1770427212475,1.22524886,2043.8,2043.0,3.85]
[1770427212856,0.002,2043.8,2043.1,1.22363075]
[1770427213159,0.002,2043.8,2043.2,0.74338698]
[1770427214067,0.002,2043.8,2043.2,9.35235701]
[1770427214258,0.002,2044.0,2043.4,4.75897003]
[1770427214570,0.002,2044.0,2043.5,4.75897003]
[1770427215170,0.002,2044.0,2043.5,5.9823462]
[1770427215349,0.002,2044.0,2043.6,1.47261503]
[1770427217077,0.002,2044.0,2043.6,2.69594244]
[1770427217594,0.002,2044.0,2043.6,1.47261503]
[1770427217796,5.12737346,2044.0,2043.0,3.85]
[1770427218086,1.04604891,2043.9,2043.0,3.85]
[1770427218295,0.002,2044.0,2043.3,1.22349203]
[1770427218586,0.002,2044.0,2043.3,1.8352675]
[1770427218800,1.04605421,2043.9,2043.1,1.22359528]
[1770427219005,0.002,2044.0,2043.1,5.07359764]
[1770427219164,2.26926245,2043.9,2043.1,9.83256767]
[1770427219371,1.22318557,2043.9,2043.1,9.83256767]
[1770427219692,5.12537346,2043.8,2042.7,1.22385526]
[1770427219890,6.17145916,2043.7,2042.7,1.22385526]
[1770427220092,1.0460857,2043.6,2042.7,1.22385526]
[1770427220299,1.0460857,2043.5,2042.6,1.22392812]
[1770427220471,6.43550872,2043.7,2042.7,1.22386998]
[1770427220800,1.7513975,2043.6,2042.8,1.22377143]
[1770427220979,1.04667009,2043.5,2042.8,1.22377143]
[1770427221183,1.22333137,2043.6,2042.6,1.22393028]
[1770427221499,1.04715427,2043.5,2042.6,5.98290031]
[1770427221704,1.22325808,2043.8,2042.7,4.75897003]
[1770427222399,1.04986368,2043.7,2042.7,4.75997003]
[1770427222607,6.17323714,2043.6,2042.7,0.001]
[1770427222816,1.79640092,2043.5,2042.7,0.001]
[1770427223101,1.04779452,2043.4,2042.7,0.001]
[1770427223305,1.22339124,2043.5,2042.7,0.001]
[1770427223629,0.002,2043.9,2043.3,4.75897003]
[1770427223822,1.22516751,2043.9,2042.9,0.041511]
[1770427224105,0.61196145,2043.8,2042.7,4.75997003]
[1770427224310,5.73733491,2043.8,2042.7,0.001]
[1770427225415,6.34864497,2043.7,2042.7,0.001]
[1770427226803,5.12537346,2043.5,2042.7,0.001]
[1770427227300,1.22345111,2043.4,2042.7,0.001]
[1770427227495,1.1242629,2043.3,2042.7,0.001]
[1770427228083,6.24963636,2043.3,2042.7,0.001]
[1770427229396,1.22357086,2043.2,2042.7,0.001]
[1770427232104,1.22336166,2043.6,2042.7,4.75997003]
[1770427232429,1.22336166,2043.6,2042.8,0.475997]
[1770427233210,1.22336166,2043.6,2042.9,3.85]
[1770427233393,1.22336166,2043.6,2043.0,3.85]
[1770427233977,4.8933255,2043.7,2043.0,1.22363762]
[1770427234181,0.002,2043.9,2043.0,1.22363762]
[1770427234392,1.22515626,2043.9,2043.1,5.32274885]
[1770427234620,6.35052972,2043.9,2043.1,3.85]
[1770427234997,5.12537346,2043.8,2043.1,3.85]
[1770427235325,0.002,2043.7,2043.1,3.85]
[1770427235510,1.05094062,2043.6,2043.1,3.85]
[1770427235715,1.05094062,2043.5,2043.1,3.85]
[1770427235907,0.002,2043.7,2043.1,3.85]
[1770427236229,1.05092267,2043.6,2043.0,3.85]
[1770427236415,1.05092267,2043.5,2043.1,0.50747136]
[1770427236598,4.97691144,2043.7,2043.1,0.50747136]
[1770427236934,1.05102876,2043.6,2043.1,0.50747136]
[1770427237233,1.05102876,2043.5,2043.1,0.50747136]
[1770427237427,0.002,2043.7,2043.2,0.43574714]
[1770427237721,1.05116865,2043.6,2043.2,0.43574714]
[1770427237926,0.002,2043.7,2043.2,4.28574714]
[1770427238126,1.05117729,2043.6,2043.2,4.28574714]
[1770427238429,0.002,2043.7,2043.3,3.85]
[1770427238628,1.051316,2043.6,2043.3,3.85]
[1770427238816,1.051316,2043.5,2043.3,3.85]
[1770427239021,0.002,2043.7,2043.3,3.85]
[1770427239211,1.05131903,2043.6,2043.3,3.85]
[1770427239526,1.05131903,2043.5,2043.3,3.85]
[1770427239707,0.002,2043.7,2043.3,3.85]
[1770427239900,1.05205734,2043.6,2043.3,3.85]
[1770427240100,2.27545062,2043.5,2043.3,3.85]
[1770427240329,1.22339328,2043.5,2043.3,3.85]
[1770427242010,1.22339328,2043.5,2043.0,3.85]
[1770427242316,1.22527151,2043.7,2043.1,5.58109709]
[1770427242641,1.05217167,2043.6,2043.1,4.35747169]
[1770427242816,1.22527151,2043.7,2043.1,4.35747169]
[1770427243017,1.05216876,2043.6,2043.1,4.35747169]
[1770427243235,1.05216876,2043.5,2043.1,4.35747169]
[1770427243445,6.20018295,2043.7,2043.1,4.35747169]
[1770427243732,1.05219298,2043.6,2043.1,3.85]
[1770427243910,1.05219298,2043.5,2043.1,3.85]
[1770427244119,1.05219298,2043.4,2043.1,3.85]
[1770427244430,1.22351098,2043.3,2042.9,3.851]
[1770427245208,1.22348815,2043.4,2042.9,3.851]
[1770427245441,1.05198977,2043.3,2042.9,4.89570423]
[1770427245615,1.22348815,2043.4,2042.9,4.89570423]
[1770427245811,1.05192375,2043.3,2042.9,4.89570423]
[1770427246037,1.22348815,2043.4,2042.9,4.89570423]
[1770427246236,1.05190152,2043.3,2042.9,4.89570423]
[1770427246437,4.89378192,2043.5,2042.9,4.89570423]
[1770427246733,1.05237432,2043.4,2042.9,6.11944925]
[1770427247037,1.05237432,2043.3,2043.1,0.001]
[1770427247212,1.22339124,2043.5,2043.1,0.001]
[1770427247415,1.05299336,2043.4,2043.1,0.001]
[1770427247627,1.05299336,2043.3,2043.1,0.001]
[1770427247812,1.22339124,2043.5,2043.1,0.001]
[1770427248012,1.05299498,2043.4,2043.1,0.001]
[1770427248212,1.05299498,2043.3,2043.1,0.001]
[1770427248519,1.05307483,2043.2,2043.1,0.001]
[1770427249339,1.05319365,2043.4,2043.1,0.001]
[1770427249640,1.05319365,2043.3,2043.1,0.001]
[1770427249841,1.05319365,2043.2,2043.1,0.001]
[1770427260128,4.37615902,2043.7,2043.1,4.99017374]
[1770427260332,1.75350263,2043.7,2043.2,5.48819111]
[1770427260742,0.002,2043.7,2043.4,4.98917374]
[1770427260945,0.002,2043.7,2043.5,8.83917374]
[1770427261470,0.002,2043.7,2043.6,3.85]
[1770427261760,0.002,2044.0,2043.7,6.21241008]
[1770427262446,0.002,2044.2,2043.7,6.21241008]
[1770427263426,1.22485361,2044.4,2043.7,6.21241008]
[1770427263668,0.002,2044.4,2043.7,1.22323634]
[1770427264029,0.002,2044.4,2043.7,6.21241008]
[1770427264227,0.002,2044.4,2043.9,4.98917374]
[1770427266051,0.002,2044.4,2044.0,1.22309197]
[1770427266557,0.002,2044.4,2044.1,4.84099431]
[1770427266746,0.002,2044.8,2044.1,4.84099431]
[1770427267941,0.002,2044.8,2044.2,1.22297231]
[1770427268252,0.002,2044.8,2044.3,0.61148616]
[1770427268465,0.002,2044.8,2044.1,1.22299803]
[1770427269168,0.002,2044.8,2044.1,6.23437081]
[1770427271628,0.002,2044.8,2044.1,6.23537081]
[1770427271845,0.002,2044.6,2044.3,0.041511]
[1770427272039,0.002,2045.0,2044.4,1.22285267]
[1770427272262,0.002,2045.0,2044.5,1.11671471]
[1770427273167,0.002,2045.0,2044.5,6.12808749]
[1770427273574,1.22213531,2045.6,2044.5,6.12808749]
[1770427273889,6.1592462,2045.6,2044.5,1.11671471]
[1770427274051,6.1592462,2045.6,2044.6,1.22273305]
[1770427274252,4.93711089,2045.4,2044.7,0.72304412]
[1770427274961,1.22213531,2045.6,2044.7,0.72304412]
[1770427275884,6.1592462,2045.6,2044.7,0.72304412]
[1770427276178,6.1592462,2045.6,2044.7,1.94567177]
[1770427276551,6.1592462,2045.6,2044.7,0.72304412]
[1770427276749,6.1592462,2045.6,2044.7,1.22266922]
[1770427276750,1.1375851,2045.5,2044.7,1.22266922]
[1770427277160,1.1375851,2045.5,2044.7,6.234042]
[1770427277767,6.07469599,2045.5,2044.7,1.22266922]
[1770427277984,1.55018064,2045.7,2044.8,5.01137278]
[1770427278157,6.48729153,2045.7,2044.9,1.22255367]
[1770427279477,4.93711089,2045.6,2044.9,1.22255367]
[1770427279674,4.93711089,2045.6,2044.8,1.22257362]
[1770427280385,1.22219506,2045.5,2044.7,9.902013]
[1770427280603,1.22219506,2045.5,2044.8,1.11661973]
[1770427280793,1.55014441,2045.7,2044.8,6.12799251]
[1770427280967,0.32806352,2045.7,2044.8,6.12799251]
[1770427281888,1.55015144,2045.7,2044.8,6.12799251]
[1770427282096,0.32806352,2045.7,2044.8,6.12799251]
[1770427282274,0.32806352,2045.7,2045.1,1.22243411]
[1770427282980,4.93711089,2045.6,2044.9,2.32438821]
[1770427283167,4.93711089,2045.6,2044.8,1.22256711]
[1770427283368,4.93711089,2045.6,2044.7,1.22262161]
[1770427283863,4.93711089,2045.6,2044.6,4.89082123]
[1770427284162,4.93711089,2045.6,2044.9,0.001]
[1770427284373,4.93711089,2045.4,2044.9,0.001]
[1770427284778,1.22419506,2045.5,2044.9,0.001]
[1770427284978,4.93711089,2045.4,2044.9,0.001]
[1770427288006,6.15936831,2045.4,2044.9,0.001]
[1770427288212,2.36205674,2045.5,2044.9,0.001]
[1770427288900,0.002,2045.5,2044.9,0.001]
[1770427289097,0.002,2045.5,2045.0,5.01137278]
[1770427290717,1.30592977,2046.0,2045.2,5.01137278]
[1770427291007,6.2019483,2046.4,2045.2,5.01137278]
[1770427291324,1.0498482,2046.3,2045.4,5.01137278]
[1770427291484,6.2019483,2046.4,2045.4,5.01137278]
[1770427291692,1.0501365,2046.3,2045.4,5.01137278]
[1770427291985,4.98024409,2046.4,2045.4,5.01137278]
[1770427292198,4.98024409,2046.4,2045.6,5.01137278]
[1770427292199,0.0431332,2046.4,2045.6,5.01137278]
[1770427292406,4.93711089,2046.3,2045.6,0.5]
[1770427292705,6.15888784,2046.2,2045.4,1.22225481]
[1770427293093,4.93711089,2046.2,2045.4,1.22225481]
[1770427294919,7.20951468,2046.1,2045.3,1.22231457]
[1770427295210,6.77483477,2046.1,2045.3,1.22231457]
[1770427295412,4.93711089,2046.0,2045.2,3.22233527]
[1770427296085,4.84559636,2045.8,2045.2,2.0]
[1770427296279,5.89658136,2045.7,2045.2,2.0]
[1770427296582,1.30592977,2045.9,2045.2,2.0]
[1770427296583,5.89658136,2045.6,2045.2,2.0]
[1770427296782,4.84559636,2045.6,2045.2,2.0]
[1770427296998,6.06777306,2045.6,2045.2,2.0]
[1770427297410,2.42414872,2046.0,2045.3,4.62931573]
[1770427297411,1.30592977,2046.0,2045.3,4.62931573]
[1770427297634,1.05177115,2045.9,2045.2,3.54471389]
[1770427297785,1.05177115,2045.8,2045.2,3.54471389]
[1770427298132,6.06950395,2046.0,2045.2,3.54471389]
[1770427298306,1.05190139,2045.9,2045.2,3.54471389]
[1770427298507,1.05190139,2045.8,2045.3,0.84352112]
[1770427298704,4.84559636,2045.9,2045.2,3.54471389]
[1770427298887,1.05190554,2045.8,2045.2,3.54471389]
[1770427299219,1.05190554,2045.8,2044.4,0.33316257]
[1770427299220,4.84559636,2045.4,2044.1,0.001]
[1770427299387,4.84559636,2045.1,2044.1,0.001]
[1770427299591,4.84559636,2045.1,2044.2,0.001]
[1770427299592,4.84559636,2044.9,2044.2,0.001]
[1770427299891,2.35824511,2044.8,2044.2,0.001]
[1770427300105,1.05231534,2044.7,2044.2,0.001]
[1770427300303,1.05231534,2044.6,2044.1,0.001]
[1770427300506,1.05231534,2044.5,2044.1,0.001]
[1770427300686,1.05231534,2044.5,2044.1,0.002]
[1770427300892,2.27516584,2044.5,2044.1,0.002]
[1770427301093,1.2228505,2044.5,2044.1,0.002]
[1770427301320,5.89721614,2044.4,2044.1,0.001]
[1770427301526,5.89721614,2044.3,2043.9,0.001]
[1770427301734,4.84559636,2044.1,2043.9,0.001]
[1770427301932,1.05161978,2044.0,2043.9,0.001]
[1770427302140,1.75389516,2044.3,2043.9,0.001]
[1770427302141,1.30592977,2044.3,2043.9,0.001]
[1770427302307,0.61515261,2044.2,2043.9,0.001]